[Event "Late-Titled-Tuesday-Blitz-January-16-2024"]
[Site "Chess.com"]
[Date "2024.01.16"]
[Round "3"]
[White "tptagain"]
[Black "PepeCuenca"]
[Result "1-0"]
[WhiteElo "2968"]
[BlackElo "2681"]
[TimeControl "180+1"]
[EndTime "14:28:00 PST"]
[Termination "tptagain won by resignation"]

1. Nf3 {[%clk 0:03:00.9]} 1... d5 {[%clk 0:02:56.8]} 2. d4 {[%clk 0:03:01.1]}
2... Nf6 {[%clk 0:02:57]} 3. e3 {[%clk 0:03:01.4]} 3... Bf5 {[%clk 0:02:47.1]}
4. c4 {[%clk 0:03:01.3]} 4... c6 {[%clk 0:02:47.4]} 5. Nc3 {[%clk 0:03:01.9]}
5... e6 {[%clk 0:02:47.2]} 6. Nh4 {[%clk 0:03:02.1]} 6... Be4 {[%clk 0:02:37.8]}
7. f3 {[%clk 0:03:02.3]} 7... Bg6 {[%clk 0:02:38]} 8. Bd2 {[%clk 0:03:02.8]}
8... Be7 {[%clk 0:02:34.2]} 9. g4 {[%clk 0:03:01.9]} 9... Nfd7 {[%clk
0:02:15.6]} 10. Nxg6 {[%clk 0:02:58.7]} 10... hxg6 {[%clk 0:02:16.5]} 11. Bd3
{[%clk 0:02:53.1]} 11... Bh4+ {[%clk 0:02:06.1]} 12. Kf1 {[%clk 0:02:52.4]}
12... Nf6 {[%clk 0:02:04.8]} 13. Kg2 {[%clk 0:02:32.9]} 13... Nbd7 {[%clk
0:01:56.9]} 14. cxd5 {[%clk 0:02:28.9]} 14... exd5 {[%clk 0:01:53.9]} 15. Qe2
{[%clk 0:02:05.1]} 15... Nf8 {[%clk 0:01:52.3]} 16. f4 {[%clk 0:01:59.3]} 16...
Ne6 {[%clk 0:01:31.3]} 17. g5 {[%clk 0:01:52.8]} 17... Ng8 {[%clk 0:01:31.2]}
18. Qg4 {[%clk 0:01:43.6]} 18... Ne7 {[%clk 0:01:25.1]} 19. Ne2 {[%clk
0:01:40.3]} 19... Qd7 {[%clk 0:00:58.6]} 20. Ng1 {[%clk 0:01:27.7]} 20... Nc5
{[%clk 0:00:33.2]} 21. Qxd7+ {[%clk 0:01:24.4]} 21... Nxd7 {[%clk 0:00:34.1]}
22. Nf3 {[%clk 0:01:16.9]} 22... f6 {[%clk 0:00:34.3]} 23. Bb4 {[%clk
0:01:10.6]} 23... Nf5 {[%clk 0:00:32.7]} 24. Bxf5 {[%clk 0:00:50.1]} 24... gxf5
{[%clk 0:00:32.8]} 25. g6 {[%clk 0:00:50.8]} 25... a5 {[%clk 0:00:16.8]} 26. Bd6
{[%clk 0:00:47.4]} 26... Nb6 {[%clk 0:00:17.2]} 27. b3 {[%clk 0:00:44.1]} 27...
Nc8 {[%clk 0:00:15.3]} 28. Ba3 {[%clk 0:00:42.4]} 28... a4 {[%clk 0:00:14.4]}
29. Bc5 {[%clk 0:00:37.7]} 29... Rh6 {[%clk 0:00:10.6]} 30. Kf1 {[%clk
0:00:37.4]} 30... Kd7 {[%clk 0:00:07.8]} 31. Ke2 {[%clk 0:00:36.2]} 31... Ra6
{[%clk 0:00:03.9]} 32. Bf8 {[%clk 0:00:34.7]} 32... axb3 {[%clk 0:00:01.3]} 33.
axb3 {[%clk 0:00:29.2]} 33... Rxa1 {[%clk 0:00:01.3]} 34. Rxa1 {[%clk
0:00:30.1]} 34... Rxg6 {[%clk 0:00:01.6]} 35. Nxh4 {[%clk 0:00:29.4]} 35... Rh6
{[%clk 0:00:01.6]} 36. Nf3 {[%clk 0:00:29.5]} 36... Rh7 {[%clk 0:00:02.2]} 37.
Rg1 {[%clk 0:00:28.9]} 37... g6 {[%clk 0:00:01.5]} 38. Rxg6 {[%clk 0:00:28.4]}
38... Rf7 {[%clk 0:00:02.4]} 39. Rg7 {[%clk 0:00:27.7]} 39... Rxg7 {[%clk
0:00:02.5]} 40. Bxg7 {[%clk 0:00:28.6]} 40... Ke7 {[%clk 0:00:03.2]} 41. Nh4
{[%clk 0:00:27]} 41... Ke6 {[%clk 0:00:02.4]} 42. Bf8 {[%clk 0:00:26.5]} 42...
Na7 {[%clk 0:00:02.2]} 43. Nf3 {[%clk 0:00:24.9]} 43... Nb5 {[%clk 0:00:03.1]}
44. Kd3 {[%clk 0:00:24.5]} 44... b6 {[%clk 0:00:03.6]} 45. h4 {[%clk 0:00:24.8]}
45... Kf7 {[%clk 0:00:04]} 46. Bb4 {[%clk 0:00:24.7]} 46... Kg6 {[%clk
0:00:04.6]} 47. Ke2 {[%clk 0:00:22.3]} 47... Nc7 {[%clk 0:00:04.8]} 48. Be7
{[%clk 0:00:17.5]} 48... Ne8 {[%clk 0:00:03.4]} 49. Kf2 {[%clk 0:00:16.2]} 49...
Kf7 {[%clk 0:00:03.2]} 50. Bd8 {[%clk 0:00:16.3]} 50... b5 {[%clk 0:00:03.7]}
51. h5 {[%clk 0:00:16.1]} 51... Ng7 {[%clk 0:00:03.6]} 52. h6 {[%clk 0:00:16]}
52... Ne6 {[%clk 0:00:04.3]} 53. h7 {[%clk 0:00:15.7]} 53... Kg7 {[%clk
0:00:03.8]} 54. Bxf6+ {[%clk 0:00:16.1]} 54... Kxh7 {[%clk 0:00:04.5]} 55. Ng5+
{[%clk 0:00:16.5]} 55... Nxg5 {[%clk 0:00:04.2]} 56. fxg5 {[%clk 0:00:17.4]} 1-0

[Event "Late-Titled-Tuesday-Blitz-January-16-2024"]
[Site "Chess.com"]
[Date "2024.01.16"]
[Round "3"]
[White "Heinza9"]
[Black "katharinareinecke"]
[Result "1-0"]
[WhiteElo "2336"]
[BlackElo "2033"]
[TimeControl "180+1"]
[EndTime "14:28:01 PST"]
[Termination "Heinza9 won on time"]

1. e4 {[%clk 0:03:00.9]} 1... c6 {[%clk 0:02:59.4]} 2. d4 {[%clk 0:02:59.3]}
2... d5 {[%clk 0:02:59.5]} 3. exd5 {[%clk 0:02:59.4]} 3... cxd5 {[%clk
0:02:59.4]} 4. c4 {[%clk 0:02:59.6]} 4... Nf6 {[%clk 0:02:58.4]} 5. Nc3 {[%clk
0:02:59.7]} 5... Be6 {[%clk 0:02:46.6]} 6. cxd5 {[%clk 0:02:47.6]} 6... Bxd5
{[%clk 0:02:46.4]} 7. Bb5+ {[%clk 0:02:46.7]} 7... Nc6 {[%clk 0:02:32.7]} 8. Nf3
{[%clk 0:02:46.1]} 8... e6 {[%clk 0:02:29.3]} 9. O-O {[%clk 0:02:44.4]} 9... Be7
{[%clk 0:02:27.2]} 10. Ne5 {[%clk 0:02:41.5]} 10... Rc8 {[%clk 0:02:21.2]} 11.
Qa4 {[%clk 0:02:28.3]} 11... a6 {[%clk 0:02:14.6]} 12. Bxc6+ {[%clk 0:02:23.4]}
12... Bxc6 {[%clk 0:02:10.1]} 13. Nxc6 {[%clk 0:02:23.4]} 13... Rxc6 {[%clk
0:02:10.1]} 14. Rd1 {[%clk 0:02:23.2]} 14... O-O {[%clk 0:02:05.2]} 15. Bg5
{[%clk 0:02:15.2]} 15... h6 {[%clk 0:02:01]} 16. Bxf6 {[%clk 0:02:15.4]} 16...
Bxf6 {[%clk 0:01:59.8]} 17. d5 {[%clk 0:02:15.8]} 17... exd5 {[%clk 0:01:38]}
18. Nxd5 {[%clk 0:02:15.1]} 18... Qc8 {[%clk 0:01:29.1]} 19. Nxf6+ {[%clk
0:02:09.9]} 19... Rxf6 {[%clk 0:01:28.5]} 20. Qd7 {[%clk 0:02:06.2]} 20... Qxd7
{[%clk 0:01:25.7]} 21. Rxd7 {[%clk 0:02:05.9]} 21... b5 {[%clk 0:01:17.3]} 22.
Rad1 {[%clk 0:02:03.1]} 22... Rc8 {[%clk 0:01:09.9]} 23. Rd8+ {[%clk 0:01:53.8]}
23... Rxd8 {[%clk 0:01:08.4]} 24. Rxd8+ {[%clk 0:01:54.7]} 24... Kh7 {[%clk
0:01:08.1]} 25. Kf1 {[%clk 0:01:54.2]} 25... Rc6 {[%clk 0:01:05.7]} 26. Rd2
{[%clk 0:01:50.7]} 26... Kg6 {[%clk 0:01:03.3]} 27. Ke2 {[%clk 0:01:50.5]} 27...
f5 {[%clk 0:01:01.7]} 28. g3 {[%clk 0:01:46.5]} 28... Kf6 {[%clk 0:01:01.1]} 29.
f4 {[%clk 0:01:45.7]} 29... g5 {[%clk 0:00:56.9]} 30. fxg5+ {[%clk 0:01:45.9]}
30... hxg5 {[%clk 0:00:56.7]} 31. Kf3 {[%clk 0:01:42.7]} 31... g4+ {[%clk
0:00:54.1]} 32. Kf2 {[%clk 0:01:32.4]} 32... Ke5 {[%clk 0:00:50.4]} 33. Ke3
{[%clk 0:01:28.6]} 33... Rh6 {[%clk 0:00:45.8]} 34. Rc2 {[%clk 0:01:26.7]} 34...
Rd6 {[%clk 0:00:12.2]} 35. Rc5+ {[%clk 0:01:21.7]} 35... Ke6 {[%clk 0:00:10.6]}
36. b4 {[%clk 0:01:17.5]} 36... Kf6 {[%clk 0:00:09.8]} 37. a4 {[%clk 0:01:00.8]}
37... Re6+ {[%clk 0:00:09.7]} 38. Kd3 {[%clk 0:00:59.4]} 38... bxa4 {[%clk
0:00:08.8]} 39. Ra5 {[%clk 0:00:59.4]} 39... Rd6+ {[%clk 0:00:06.3]} 40. Ke3
{[%clk 0:00:55.8]} 40... Re6+ {[%clk 0:00:06.2]} 41. Kd3 {[%clk 0:00:53.9]}
41... Rd6+ {[%clk 0:00:06.6]} 42. Kc3 {[%clk 0:00:53.5]} 42... Re6 {[%clk
0:00:06.1]} 43. Rxa4 {[%clk 0:00:52.3]} 43... Re2 {[%clk 0:00:06.1]} 44. Rxa6+
{[%clk 0:00:52]} 44... Kg5 {[%clk 0:00:06.4]} 45. b5 {[%clk 0:00:51]} 45... Rxh2
{[%clk 0:00:06.5]} 46. b6 {[%clk 0:00:51.4]} 46... Rh7 {[%clk 0:00:06.4]} 47.
Ra7 {[%clk 0:00:51]} 47... Rh8 {[%clk 0:00:05.5]} 48. b7 {[%clk 0:00:48.3]}
48... Rb8 {[%clk 0:00:05.2]} 49. Kd3 {[%clk 0:00:46.8]} 49... f4 {[%clk
0:00:05.5]} 50. Ra5+ {[%clk 0:00:45.6]} 50... Kf6 {[%clk 0:00:03.3]} 51. gxf4
{[%clk 0:00:45.7]} 51... Rxb7 {[%clk 0:00:03.3]} 52. Rg5 {[%clk 0:00:42.2]}
52... Rd7+ {[%clk 0:00:03]} 53. Ke3 {[%clk 0:00:42]} 53... Re7+ {[%clk 0:00:03]}
54. Kf2 {[%clk 0:00:41.8]} 54... Rd7 {[%clk 0:00:03.3]} 55. Kg3 {[%clk
0:00:40.5]} 55... Rd4 {[%clk 0:00:03.2]} 56. Kxg4 {[%clk 0:00:40.4]} 56... Kf7
{[%clk 0:00:03.1]} 57. Ra5 {[%clk 0:00:39.9]} 57... Rd6 {[%clk 0:00:03.1]} 58.
Ra7+ {[%clk 0:00:38.1]} 58... Kf6 {[%clk 0:00:03.2]} 59. Ra8 {[%clk 0:00:35.6]}
59... Rb6 {[%clk 0:00:03]} 60. Rh8 {[%clk 0:00:29.2]} 60... Rc6 {[%clk
0:00:02.7]} 61. Rh6+ {[%clk 0:00:29.1]} 1-0

[Event "Late-Titled-Tuesday-Blitz-January-16-2024"]
[Site "Chess.com"]
[Date "2024.01.16"]
[Round "3"]
[White "ozen_metehan"]
[Black "Durarbayli"]
[Result "0-1"]
[WhiteElo "2451"]
[BlackElo "2864"]
[TimeControl "180+1"]
[EndTime "14:28:08 PST"]
[Termination "Durarbayli won by resignation"]

1. e4 {[%clk 0:03:00.9]} 1... e6 {[%clk 0:02:55.4]} 2. d3 {[%clk 0:02:59.6]}
2... d5 {[%clk 0:02:54.6]} 3. Nd2 {[%clk 0:03:00]} 3... c5 {[%clk 0:02:54.4]} 4.
Ngf3 {[%clk 0:02:59.3]} 4... Nc6 {[%clk 0:02:54.5]} 5. g3 {[%clk 0:02:59.9]}
5... Bd6 {[%clk 0:02:54.4]} 6. Bg2 {[%clk 0:03:00.1]} 6... Nge7 {[%clk
0:02:54.1]} 7. O-O {[%clk 0:03:00.7]} 7... O-O {[%clk 0:02:54.1]} 8. Re1 {[%clk
0:03:01.2]} 8... Qc7 {[%clk 0:02:43.8]} 9. exd5 {[%clk 0:02:59.1]} 9... exd5
{[%clk 0:02:42.9]} 10. c4 {[%clk 0:02:59.5]} 10... Bg4 {[%clk 0:02:22.5]} 11. h3
{[%clk 0:02:52.1]} 11... Bh5 {[%clk 0:02:22.4]} 12. cxd5 {[%clk 0:02:41.9]}
12... Nxd5 {[%clk 0:02:19.5]} 13. Nc4 {[%clk 0:02:38.2]} 13... Rfe8 {[%clk
0:02:06.8]} 14. Rxe8+ {[%clk 0:02:23.8]} 14... Rxe8 {[%clk 0:02:06.1]} 15. g4
{[%clk 0:02:24.3]} 15... Bg6 {[%clk 0:02:03.9]} 16. Nh4 {[%clk 0:02:20.7]} 16...
Nf4 {[%clk 0:01:41.7]} 17. Nxd6 {[%clk 0:01:50.5]} 17... Qxd6 {[%clk 0:01:34.2]}
18. Bxf4 {[%clk 0:01:49.4]} 18... Qxf4 {[%clk 0:01:35.1]} 19. Nxg6 {[%clk
0:01:49.1]} 19... hxg6 {[%clk 0:01:34.6]} 20. Qf3 {[%clk 0:01:41.5]} 20... Qd2
{[%clk 0:01:22.8]} 21. b3 {[%clk 0:01:10.4]} 21... Re1+ {[%clk 0:00:55]} 22.
Rxe1 {[%clk 0:01:07.6]} 22... Qxe1+ {[%clk 0:00:55.9]} 23. Kh2 {[%clk
0:01:08.1]} 23... Nd4 {[%clk 0:00:48.6]} 24. Qe3 {[%clk 0:00:49.6]} 24... Qxe3
{[%clk 0:00:23.2]} 25. fxe3 {[%clk 0:00:48]} 25... Nc2 {[%clk 0:00:24.1]} 26.
Bxb7 {[%clk 0:00:45.2]} 26... Nxe3 {[%clk 0:00:21.9]} 27. Kg3 {[%clk 0:00:45.3]}
27... Nc2 {[%clk 0:00:19.5]} 28. Kf4 {[%clk 0:00:37.7]} 28... Nb4 {[%clk
0:00:19.6]} 29. Ke4 {[%clk 0:00:32.9]} 29... Nxa2 {[%clk 0:00:18.5]} 30. Kd5
{[%clk 0:00:32.8]} 30... Nc1 {[%clk 0:00:14.8]} 31. Kxc5 {[%clk 0:00:28]} 31...
Nxd3+ {[%clk 0:00:14]} 32. Kb5 {[%clk 0:00:26.2]} 32... Kf8 {[%clk 0:00:10.2]}
33. Bg2 {[%clk 0:00:22.8]} 33... f5 {[%clk 0:00:08.8]} 34. Bf1 {[%clk 0:00:20]}
34... Nc1 {[%clk 0:00:05.9]} 35. b4 {[%clk 0:00:20]} 35... Na2 {[%clk
0:00:03.6]} 36. Bc4 {[%clk 0:00:19.3]} 36... Nc3+ {[%clk 0:00:02.9]} 37. Ka6
{[%clk 0:00:19.9]} 37... f4 {[%clk 0:00:02.9]} 38. Kxa7 {[%clk 0:00:19.9]} 38...
Ke7 {[%clk 0:00:03.4]} 39. b5 {[%clk 0:00:20.2]} 39... Nxb5+ {[%clk 0:00:03.2]}
40. Bxb5 {[%clk 0:00:20.2]} 40... Kd6 {[%clk 0:00:04.1]} 41. Kb6 {[%clk
0:00:20.2]} 41... Kd5 {[%clk 0:00:04.4]} 42. Bd3 {[%clk 0:00:19.7]} 42... g5
{[%clk 0:00:04.2]} 43. Be2 {[%clk 0:00:17.4]} 43... Ke4 {[%clk 0:00:04.1]} 44.
Kc5 {[%clk 0:00:18]} 44... f3 {[%clk 0:00:04.1]} 45. Bf1 {[%clk 0:00:17.9]}
45... Ke3 {[%clk 0:00:04.3]} 46. Kd5 {[%clk 0:00:17.9]} 46... Kf2 {[%clk
0:00:04.5]} 47. Bb5 {[%clk 0:00:17.9]} 47... Kg2 {[%clk 0:00:03.8]} 48. Ke5
{[%clk 0:00:17.7]} 48... Kxh3 {[%clk 0:00:04]} 49. Kf5 {[%clk 0:00:18.3]} 49...
Kh4 {[%clk 0:00:04.2]} 50. Bc4 {[%clk 0:00:11.5]} 50... g6+ {[%clk 0:00:03.9]}
51. Kxg6 {[%clk 0:00:10.7]} 51... Kxg4 {[%clk 0:00:04.8]} 52. Kf6 {[%clk
0:00:07.3]} 52... Kf4 {[%clk 0:00:05.1]} 53. Bf1 {[%clk 0:00:05.6]} 53... g4
{[%clk 0:00:06]} 54. Bb5 {[%clk 0:00:04.2]} 54... g3 {[%clk 0:00:06.9]} 0-1

[Event "Late-Titled-Tuesday-Blitz-January-16-2024"]
[Site "Chess.com"]
[Date "2024.01.16"]
[Round "3"]
[White "DarkAlekhine"]
[Black "zverr1"]
[Result "1-0"]
[WhiteElo "2733"]
[BlackElo "2507"]
[TimeControl "180+1"]
[EndTime "14:28:10 PST"]
[Termination "DarkAlekhine won on time"]

1. c4 {[%clk 0:02:57.4]} 1... c5 {[%clk 0:02:56]} 2. Nc3 {[%clk 0:02:54.2]} 2...
Nc6 {[%clk 0:02:55.6]} 3. g3 {[%clk 0:02:54.6]} 3... g6 {[%clk 0:02:55]} 4. Bg2
{[%clk 0:02:54.8]} 4... Bg7 {[%clk 0:02:55]} 5. e3 {[%clk 0:02:55.1]} 5... e5
{[%clk 0:02:50.3]} 6. Nge2 {[%clk 0:02:55.3]} 6... Nge7 {[%clk 0:02:50]} 7. O-O
{[%clk 0:02:55.5]} 7... O-O {[%clk 0:02:50.1]} 8. Rb1 {[%clk 0:02:54.4]} 8... d6
{[%clk 0:02:48]} 9. a3 {[%clk 0:02:53.2]} 9... a5 {[%clk 0:02:45.6]} 10. d3
{[%clk 0:02:48.5]} 10... Be6 {[%clk 0:02:41.2]} 11. Nd5 {[%clk 0:02:47.7]} 11...
Rb8 {[%clk 0:02:25.6]} 12. Nec3 {[%clk 0:02:41]} 12... Qd7 {[%clk 0:02:21.2]}
13. Re1 {[%clk 0:02:32.5]} 13... f5 {[%clk 0:02:11.7]} 14. b4 {[%clk 0:02:28.4]}
14... axb4 {[%clk 0:02:10.9]} 15. axb4 {[%clk 0:02:28.6]} 15... Bf7 {[%clk
0:01:56]} 16. b5 {[%clk 0:02:21]} 16... Nxd5 {[%clk 0:01:54.3]} 17. Nxd5 {[%clk
0:01:31.6]} 17... Ne7 {[%clk 0:01:54]} 18. Qb3 {[%clk 0:01:10.1]} 18... Nxd5
{[%clk 0:01:47.5]} 19. cxd5 {[%clk 0:01:11]} 19... Ra8 {[%clk 0:01:32.1]} 20.
Bb2 {[%clk 0:01:08.8]} 20... b6 {[%clk 0:01:19.6]} 21. Ra1 {[%clk 0:01:07.2]}
21... Qb7 {[%clk 0:01:19.2]} 22. Qc4 {[%clk 0:01:03.8]} 22... Rfe8 {[%clk
0:01:06.2]} 23. Ra6 {[%clk 0:01:02.2]} 23... Ra7 {[%clk 0:00:37.5]} 24. Rea1
{[%clk 0:01:01.1]} 24... Rea8 {[%clk 0:00:37.9]} 25. Qa4 {[%clk 0:00:58.2]}
25... Rxa6 {[%clk 0:00:35.9]} 26. bxa6 {[%clk 0:00:59.1]} 26... Qa7 {[%clk
0:00:24]} 27. Qc6 {[%clk 0:00:40.9]} 27... Bf8 {[%clk 0:00:23.8]} 28. f4 {[%clk
0:00:40.5]} 28... Be8 {[%clk 0:00:14]} 29. Qb7 {[%clk 0:00:40.5]} 29... exf4
{[%clk 0:00:09.2]} 30. gxf4 {[%clk 0:00:40.1]} 30... Bd7 {[%clk 0:00:03.1]} 31.
e4 {[%clk 0:00:28]} 31... Bc8 {[%clk 0:00:02.7]} 32. Qc6 {[%clk 0:00:20.3]}
32... Bd7 {[%clk 0:00:03.2]} 33. Qb7 {[%clk 0:00:19.4]} 33... Bc8 {[%clk
0:00:03.9]} 34. Qxa7 {[%clk 0:00:16.7]} 34... Rxa7 {[%clk 0:00:04.2]} 35. e5
{[%clk 0:00:15.6]} 35... Rxa6 {[%clk 0:00:04.1]} 36. Re1 {[%clk 0:00:15.6]}
36... Ra2 {[%clk 0:00:03.2]} 37. Bc3 {[%clk 0:00:14.9]} 37... Ra3 {[%clk
0:00:03.6]} 38. Bb2 {[%clk 0:00:13.5]} 38... Rxd3 {[%clk 0:00:03.4]} 39. exd6
{[%clk 0:00:12.3]} 39... Bxd6 {[%clk 0:00:02.3]} 40. Re8+ {[%clk 0:00:11.5]}
40... Kf7 {[%clk 0:00:03]} 41. Rxc8 {[%clk 0:00:10.9]} 41... Rd1+ {[%clk
0:00:02.4]} 42. Bf1 {[%clk 0:00:11.5]} 42... Rxd5 {[%clk 0:00:02.5]} 43. Bc4
{[%clk 0:00:10.7]} 43... Ke6 {[%clk 0:00:02.7]} 44. Rh8 {[%clk 0:00:08.6]} 44...
Bxf4 {[%clk 0:00:02.1]} 45. Rxh7 {[%clk 0:00:08.8]} 45... Kd6 {[%clk 0:00:02.8]}
46. Bxd5 {[%clk 0:00:08.4]} 46... Kxd5 {[%clk 0:00:03.7]} 47. Kg2 {[%clk
0:00:08.4]} 47... g5 {[%clk 0:00:03.9]} 48. Kf3 {[%clk 0:00:08.8]} 48... Kc4
{[%clk 0:00:01.5]} 49. h4 {[%clk 0:00:08.4]} 1-0

[Event "Late-Titled-Tuesday-Blitz-January-16-2024"]
[Site "Chess.com"]
[Date "2024.01.16"]
[Round "3"]
[White "Mops_2004"]
[Black "ShahMatKanal"]
[Result "1/2-1/2"]
[WhiteElo "2685"]
[BlackElo "2500"]
[TimeControl "180+1"]
[EndTime "14:28:10 PST"]
[Termination "Game drawn - insufficient material"]

1. Nf3 {[%clk 0:03:00.9]} 1... c5 {[%clk 0:02:54.2]} 2. c4 {[%clk 0:03:00.5]}
2... Nc6 {[%clk 0:02:51.9]} 3. Nc3 {[%clk 0:03:00.5]} 3... e5 {[%clk 0:02:48.4]}
4. e3 {[%clk 0:03:00.6]} 4... d6 {[%clk 0:02:46.9]} 5. d4 {[%clk 0:03:00.2]}
5... cxd4 {[%clk 0:02:39.4]} 6. exd4 {[%clk 0:03:00.2]} 6... Be7 {[%clk
0:02:38.2]} 7. Be2 {[%clk 0:02:52.9]} 7... Nf6 {[%clk 0:02:36.4]} 8. O-O {[%clk
0:02:51.7]} 8... O-O {[%clk 0:02:31.8]} 9. h3 {[%clk 0:02:42]} 9... Bf5 {[%clk
0:02:22.8]} 10. Be3 {[%clk 0:02:41.4]} 10... h6 {[%clk 0:02:12.4]} 11. d5 {[%clk
0:02:29]} 11... Nb8 {[%clk 0:02:08.4]} 12. b4 {[%clk 0:02:24.7]} 12... Ne4
{[%clk 0:01:58.5]} 13. Nxe4 {[%clk 0:02:19.9]} 13... Bxe4 {[%clk 0:01:59.4]} 14.
Nd2 {[%clk 0:02:20]} 14... Bg6 {[%clk 0:01:50.8]} 15. Qb3 {[%clk 0:02:12.6]}
15... Nd7 {[%clk 0:01:44.3]} 16. Rac1 {[%clk 0:02:10.2]} 16... b6 {[%clk
0:01:42.8]} 17. Rfd1 {[%clk 0:02:07.6]} 17... Bg5 {[%clk 0:01:35.9]} 18. g3
{[%clk 0:01:48.7]} 18... Bxe3 {[%clk 0:01:35.4]} 19. Qxe3 {[%clk 0:01:48.9]}
19... f5 {[%clk 0:01:35.2]} 20. f4 {[%clk 0:01:49.2]} 20... a5 {[%clk
0:01:29.6]} 21. a3 {[%clk 0:01:37.3]} 21... Re8 {[%clk 0:01:24.8]} 22. Bf1
{[%clk 0:01:23.4]} 22... axb4 {[%clk 0:01:19.8]} 23. axb4 {[%clk 0:01:23.4]}
23... exf4 {[%clk 0:01:16.7]} 24. Qxf4 {[%clk 0:01:22.6]} 24... Ne5 {[%clk
0:01:17.3]} 25. Nf3 {[%clk 0:01:17.6]} 25... Ra3 {[%clk 0:01:14.2]} 26. Nxe5
{[%clk 0:00:57.4]} 26... Rxe5 {[%clk 0:01:15.1]} 27. Re1 {[%clk 0:00:49.7]}
27... Qe7 {[%clk 0:01:09.8]} 28. Qf2 {[%clk 0:00:43.7]} 28... Bf7 {[%clk
0:00:56]} 29. Bg2 {[%clk 0:00:33.8]} 29... g6 {[%clk 0:00:51.9]} 30. Kh2 {[%clk
0:00:33.2]} 30... h5 {[%clk 0:00:49]} 31. Rxe5 {[%clk 0:00:33.2]} 31... Qxe5
{[%clk 0:00:48.4]} 32. Re1 {[%clk 0:00:33.3]} 32... Qc3 {[%clk 0:00:46.5]} 33.
c5 {[%clk 0:00:26.9]} 33... bxc5 {[%clk 0:00:45.8]} 34. bxc5 {[%clk 0:00:27.2]}
34... Qxc5 {[%clk 0:00:45.2]} 35. Qxc5 {[%clk 0:00:22.9]} 35... dxc5 {[%clk
0:00:46.1]} 36. Rd1 {[%clk 0:00:14.7]} 36... Kf8 {[%clk 0:00:40.5]} 37. d6
{[%clk 0:00:14.6]} 37... Ke8 {[%clk 0:00:40]} 38. Bc6+ {[%clk 0:00:15.3]} 38...
Kd8 {[%clk 0:00:36]} 39. Rb1 {[%clk 0:00:15]} 39... Rb3 {[%clk 0:00:35.9]} 40.
Rxb3 {[%clk 0:00:07.1]} 40... Bxb3 {[%clk 0:00:35.3]} 41. Kg2 {[%clk 0:00:06.7]}
41... c4 {[%clk 0:00:23.1]} 42. Kf2 {[%clk 0:00:06.9]} 42... c3 {[%clk
0:00:23.7]} 43. Ke3 {[%clk 0:00:06.1]} 43... g5 {[%clk 0:00:23]} 44. Kd3 {[%clk
0:00:05.3]} 44... c2 {[%clk 0:00:22.7]} 45. Kd2 {[%clk 0:00:05.7]} 45... f4
{[%clk 0:00:17.2]} 46. gxf4 {[%clk 0:00:05.9]} 46... gxf4 {[%clk 0:00:18.1]} 47.
h4 {[%clk 0:00:06.5]} 47... Bf7 {[%clk 0:00:04.7]} 48. Kxc2 {[%clk 0:00:05.9]}
48... Be8 {[%clk 0:00:05.1]} 49. Bxe8 {[%clk 0:00:02.7]} 49... Kxe8 {[%clk
0:00:06]} 50. Kd3 {[%clk 0:00:03.1]} 50... Kd7 {[%clk 0:00:06.6]} 51. Ke4 {[%clk
0:00:03.8]} 51... Kxd6 {[%clk 0:00:07.1]} 52. Kxf4 {[%clk 0:00:04.5]} 52... Ke6
{[%clk 0:00:07.5]} 53. Kg5 {[%clk 0:00:05.4]} 53... Kf7 {[%clk 0:00:08.3]} 54.
Kxh5 {[%clk 0:00:04.6]} 54... Kg8 {[%clk 0:00:09.2]} 55. Kg4 {[%clk 0:00:05.1]}
55... Kh8 {[%clk 0:00:10.1]} 56. h5 {[%clk 0:00:05.5]} 56... Kg8 {[%clk
0:00:11]} 57. h6 {[%clk 0:00:06.1]} 57... Kh8 {[%clk 0:00:11.9]} 58. h7 {[%clk
0:00:06.7]} 58... Kxh7 {[%clk 0:00:12]} 1/2-1/2